Cogmind - Beta 13 @@@ ROGUE MODE // 2024.04.05 @ 16:17:22 Player: Cmdr.Laserstrahl Result: Destroyed by as-96041 with Assembled Maul Performance ------------- Evolutions (0) 0 Regions Visited (2) 400 Robots Destroyed (13) 65 Value Destroyed (231) 231 Prototype IDs (2) 40 Alien Tech Used (0) 0 Bonus (0) 0 TOTAL SCORE: 736 Bonus ------- None Cogmind --------- Core Integrity 0/250 Matter 300/300 Energy 109/125 System Corruption 10% Temperature Cool (39) Movement Rolling (80) Location -10/Mines Parts ------- > --- POWER (1) -------- Light Ion Engine > --- PROPULSION (2) --- Wheel Flight Unit > --- UTILITY (2) ------ Small Storage Unit > --- WEAPON (2) ------- EM Pulse Gun > --- INVENTORY (8) ---- Ion Engine Wheel High-capacity Battery (250) Sensor Array ECM Suite Medium Laser Mining Laser Peak State ------------ > --- POWER ------------ Ion Engine > --- PROPULSION ------- Wheel Flight Unit > --- UTILITY ---------- Small Storage Unit Improved Terrain Scanner > --- WEAPON ----------- EM Pulse Gun Assault Rifle > --- INVENTORY -------- Light Ion Engine Wheel High-capacity Battery Sensor Array ECM Suite EM Pulse Gun Medium Laser Mining Laser [Rating: 9] Favorites ----------- Power Ion Engine Engine Ion Engine Propulsion Compact Wheel Wheel Compact Wheel Flight Unit Flight Unit Utility Small Storage Unit Device Sensor Array Storage Small Storage Unit Weapon Light Assault Rifle Energy Gun Medium Laser Ballistic Gun Light Assault Rifle Build | -11 -10 -10 ------- Run | Yrd Mat Min Slots Evolved . | . . . Power . | . . . Propulsion . | . . . Utility . | . . . Weapon . | . . . Parts Attached 22 | 6 10 6 Power 4 | . 3 1 Engine 4 | . 3 1 Core . | . . . Reactor . | . . . Propulsion 5 | 2 1 2 Treads . | . . . Leg . | . . . Wheel 4 | 2 1 1 Hover . | . . . Flight 1 | . . 1 Utility 5 | 2 2 1 Device 4 | 1 2 1 Storage 1 | 1 . . Processor . | . . . Hackware . | . . . Protection . | . . . Artifact . | . . . Weapon 8 | 2 4 2 Energy Gun 5 | 1 2 2 Energy Cannon . | . . . Ballistic Gun 3 | 1 2 . Ballistic Cannon . | . . . Launcher . | . . . Special Weapon . | . . . Impact Weapon . | . . . Slashing Weapon . | . . . Piercing Weapon . | . . . Special Melee Weapon . | . . . Unidentified Prototypes . | . . . Parts Lost 10 | . 5 5 Power 2 | . 2 . Propulsion 3 | . 1 2 Utility 2 | . 1 1 Weapon 3 | . 1 2 Highest Loss Streak 3 | . 3 3 To Critical Strikes . | . . . Average Slot Usage (%) 94 | . 97 89 Engine 13 | . 13 14 Wheel 21 | . 26 14 Flight 1 | . . 4 Device 13 | . 13 13 Storage 14 | . 14 14 Energy Gun 14 | . 14 14 Ballistic Gun 13 | . 14 13 Naked Turns . | . . . Heaviest Build 15 | 8 15 15 Greatest Support 32 | 32 32 26 Greatest Overweight (x) 2 | 2 . 1 Average Overweight (x) . | . . . Largest Inventory Capacity 8 | 8 8 8 Average Capacity 7 | 7 8 8 Most Carried 8 | 7 8 8 Average Carried 7 | 4 7 7 Final Capacity 8 | 8 8 8 Final Carried 8 | 7 8 7 Class Distribution -------------------- 85% | Mutant 14% | Scavenger-Mutant Dominant Class ---------------- Mutant | -10/Materials Mutant | -10/Mines Resources | -11 -10 -10 ----------- Run | Yrd Mat Min Matter Collected 492 | 265 93 134 Remotely . | . . . Salvage Created 488 | 107 235 146 Parts 31 | 8 20 3 Haulers Intercepted . | . . . Recyclers Shooed . | . . . Parts Field Recycled . | . . . Retrieved Matter . | . . . Parts Self-Destructed . | . . . Prevented . | . . . Kills | -11 -10 -10 ------- Run | Yrd Mat Min Combat Hostiles Destroyed 15 | . 6 9 Guns 15 | . 6 9 Classes Destroyed 8 | 2 5 1 Worker 1 | . 1 . Tunneler 1 | 1 . . Recycler 1 | 1 . . Operator 1 | . 1 . Watcher 1 | . 1 . Swarmer 5 | . 3 2 Grunt 3 | . 3 . Assembled 7 | . . 7 Best Kill Streak 4 | 2 4 3 Combat Bots Only 3 | . 2 3 Max Kills in Single Turn 2 | 1 1 2 Gunslinging 1 | . . 1 Exploded . | . . . Melee . | . . . Uniques/NPCs Destroyed . | . . . Combat | -11 -10 -10 -------- Run | Yrd Mat Min Hostile Shots Fired 99 | . 63 36 Missed 25 | . 15 10 Damage Taken 1073 | . 607 466 Core 250 | . 132 118 Absorbed by Shields . | . . . Core Remaining (%) 100 | 100 . . Volleys Fired 73 | 5 40 28 Largest 2 | 2 2 2 Hottest 80 | 60 70 80 Shots Fired 143 | 10 79 54 Gun 143 | 10 79 54 Cannon . | . . . Launcher . | . . . Special . | . . . Kinetic 68 | 5 40 23 Thermal 47 | 5 39 3 Explosive . | . . . Electromagnetic 28 | . . 28 Robot Hit Streak 7 | 4 5 7 Robot Miss Streak 5 | 2 4 5 Penetration Max . | . . . Secondary Targets 2 | . 1 1 Max Gunslinging Chain 1 | . 1 1 Shots Hit Robots 81 | 6 44 31 Core Hits 39 | 3 19 17 Critical Kills . | . . . Critical Parts Destroyed . | . . . Critical Strikes 1 | . 1 . Burn 1 | . 1 . Melee Attacks . | . . . Impact . | . . . Slashing . | . . . Piercing . | . . . Sneak Attacks . | . . . Combat Hostiles . | . . . Follow-up Attacks . | . . . Damage Inflicted 946 | 60 471 415 Guns 893 | 60 471 362 Cannons . | . . . Explosions 53 | . . 53 Melee . | . . . Ramming . | . . . Kinetic 393 | 15 181 197 Thermal 401 | 45 290 66 Explosive . | . . . Electromagnetic 152 | . . 152 Impact . | . . . Slashing . | . . . Piercing . | . . . Highest Corruption 9 | . . 9 Average Corruption 7 | . . 7 Corruption Purged . | . . . Corruption Blocked . | . . . Effects 1 | . . 1 Weapon Failures 1 | . . 1 Overload Shots . | . . . Overflow Damage . | . . . Projectiles . | . . . Explosions . | . . . Melee . | . . . Knockbacks . | . . . Impact . | . . . Kinetic . | . . . Secondary . | . . . Self-Inflicted Damage 53 | . . 53 Shots 1 | . . 1 Rammed . | . . . Targets Rammed . | . . . Kicked . | . . . Crushed . | . . . Highest Temperature 170 | 20 170 41 Average Temperature 48 | 9 58 24 Received Heat Transfer 342 | . 282 60 Siege Activations . | . . . Robots Corrupted . | . . . Combat Hostiles . | . . . Parts Fried . | . . . Impact Corruptions . | . . . Robots Melted . | . . . Combat Hostiles . | . . . Parts Melted . | . . . Heat Transferred 1064 | 100 877 87 Parts Sabotaged . | . . . Parts Stolen . | . . . Parts Stripped . | . . . Power Chain Reactions . | . . . Alert | -11 -10 -10 ------- Run | Yrd Mat Min Peak Influence 186 | 10 186 65 Initial 6 | . 6 . Average 75 | 3 101 54 Maximum Alert Level . | . . . Low Security (%) 100 | 100 100 100 Level 1 . | . . . Level 2 . | . . . Level 3 . | . . . Level 4 . | . . . Level 5 . | . . . High Security . | . . . Max Security . | . . . Squads Dispatched . | . . . Investigation . | . . . Extermination . | . . . Reinforcement . | . . . Assault . | . . . Garrison . | . . . Intercept . | . . . Searches Triggered . | . . . Construction Impeded . | . . . Haulers Reinforced . | . . . Active Scanning Responses . | . . . Cargo Convoy Interrupts . | . . . Stealth | -11 -10 -10 --------- Run | Yrd Mat Min Distress Signals 1 | . . 1 Communications Jammed . | . . . Distress Signals . | . . . Times Spotted 32 | . 17 15 Peak Tracking Total 5 | . 3 5 Tactical Retreats 4 | . 2 2 Traps | -11 -10 -10 ------- Run | Yrd Mat Min Traps Triggered . | . . . Indirectly . | . . . Trap Hack Attempts . | . . . Triggered . | . . . Disarmed . | . . . Reprogrammed . | . . . Reused . | . . . Traps Extracted . | . . . Installed . | . . . Triggered . | . . . Machines | -11 -10 -10 ---------- Run | Yrd Mat Min Machines Disabled 2 | . . 2 Max in Single Turn 1 | . . 1 Machines Repaired . | . . . Machines Dismantled . | . . . Machines Sabotaged . | . . . Overloaded Fab Kills . | . . . Hacking | -11 -10 -10 --------- Run | Yrd Mat Min Machines Accessed 5 | . 5 . Terminals 4 | . 4 . Fabricators . | . . . Repair Stations . | . . . Recycling Units 1 | . 1 . Scanalyzers . | . . . Garrison Access . | . . . Total Hacks 13 | . 13 . Successful 9 | . 9 . Failed 4 | . 4 . Catastrophic . | . . . Database Lockouts . | . . . Manual 6 | . 6 . Terminals 12 | . 12 . Fabricators . | . . . Repair Stations . | . . . Recycling Units 1 | . 1 . Scanalyzers . | . . . Garrison Access . | . . . Terminal Hacks 5 | . 5 . Prototype ID Bank 1 | . 1 . Locate Traps 1 | . 1 . Hauler Manifests 1 | . 1 . Zone Layout 2 | . 2 . Fabricator Hacks . | . . . Repair Station Hacks . | . . . Recycling Unit Hacks 1 | . 1 . Report Inventory 1 | . 1 . Scanalyzer . | . . . Garrison Access Hacks . | . . . Unauthorized Hacks 3 | . 3 . Terminals 3 | . 3 . Botnet 3 | . 3 . Fabricators . | . . . Repair Stations . | . . . Recycling Units . | . . . Scanalyzers . | . . . Garrison Access . | . . . Data Cores Recovered 1 | . 1 . Used 1 | . 1 . Hacking Detections 3 | . 3 . Full Trace Events 1 | . 1 . Feedback Events . | . . . Feedback Blocked . | . . . Robot Schematics Acquired . | . . . Robots Built . | . . . Authchips . | . . . Time . | . . . Total Robot Build Rating . | . . . Part Schematics Acquired . | . . . Parts Built . | . . . Authchips . | . . . Time . | . . . Total Part Build Rating . | . . . Parts Repaired . | . . . Time . | . . . Parts Recycled . | . . . Recycled Matter . | . . . Retrieved Matter . | . . . Retrieved Components . | . . . Parts Scanalyzed . | . . . Part Schematics Acquired . | . . . Parts Damaged . | . . . Bothacking | -11 -10 -10 ------------ Run | Yrd Mat Min Used RIF Installer . | . . . Robots Hacked . | . . . Non-combat . | . . . Combat . | . . . Robot Hacks Applied . | . . . Relay Couplers Released . | . . . Fabnet Peak Effective % . | . . . Robots Rewired . | . . . Allies Hacked . | . . . Hacks Repelled . | . . . Allies | -11 -10 -10 -------- Run | Yrd Mat Min Total Allies . | . . . Largest Group . | . . . Highest-Rated Group . | . . . Highest-Rated Ally . | . . . Total Orders . | . . . Ally Attacks . | . . . Total Damage . | . . . Kills . | . . . Allies Corrupted . | . . . Allies Melted . | . . . Intel | -11 -10 -10 ------- Run | Yrd Mat Min Robot Analysis Total . | . . . Derelict Logs Recovered . | . . . Drone Launches . | . . . Drone Recoveries . | . . . Exploration | -11 -10 -10 ------------- Run | Yrd Mat Min Turns Passed 777 | 70 432 275 Spaces Moved 517 | 40 300 177 Core 22 | 22 . . Treads . | . . . Legs . | . . . Wheels 495 | 18 300 177 Hover . | . . . Flight . | . . . Fastest Speed 50 | 50 90 90 Average Speed 94 | 95 95 94 Slowest Speed 150 | 150 100 95 Overloaded Moves . | . . . Propulsion Burnouts . | . . . Robots Hopped . | . . . Cave-ins Triggered . | . . . Exploration Rate (%) 26 | 3 50 25 Regions Visited 2 Branch Regions 1 Pre-discovered Areas . | . . . Known Exits Taken . | . . . Unknown Exits Taken 2 | 1 1 . Scrap Searched . | . . . Spaces Dug . | . . . Terrain Destroyed 7 | . . 7 Melee . | . . . Projectile . | . . . AOE 7 | . . 7 Terrain Rammed . | . . . Walls Destroyed . | . . . Machines Disabled . | . . . Actions | -11 -10 -10 --------- Run | Yrd Mat Min Total 666 | 62 375 229 Wait 29 | . 12 17 Move 515 | 39 299 177 Hop . | . . . Pick Up 22 | 12 9 1 Fast Attach 4 | 1 2 1 Attach 11 | 5 4 2 Detach . | . . . Swap 7 | . 4 3 Drop 5 | . 5 . Fire 73 | 5 40 28 Melee . | . . . Ram . | . . . Kick . | . . . Crush . | . . . Escape Stasis . | . . . Rewire . | . . . Trap . | . . . Miscellaneous . | . . . Route ------- -11/Scrapyard -10/Materials -10/Mines History --------- Turn | Location | Event 2 | -11/Scrapyard | Met Revision 17 13 | -11/Scrapyard | Discovered new exit (range 15) 71 | -11/Scrapyard | Entered Materials 306 | -10/Materials | Lost 3 parts (1p1n1u) 309 | -10/Materials | Build established: Mutant 375 | -10/Materials | Core integrity fell below 50% 489 | -10/Materials | Discovered new exit (range 7) 503 | -10/Materials | Entered Mines 504 | -10/Mines | Assembled infested the area 509 | -10/Mines | Assisted by a Guerilla fighting off Assembled 774 | -10/Mines | Core integrity fell below 20% 778 | -10/Mines | Destroyed by as-96041 with Assembled Maul Last Messages --------------- 00680_ Acquired Flight Unit. 00686_ Acquired 20 matter. 00702_ Knocked back. 00703_ as-70849 destroyed. 00707_ Acquired 9 matter. 00750_ as-18734 destroyed. 00753_ Acquired 12 matter. 00755_ K-01 Serf collects debris. 00759_ K-01 Serf destroyed. 00763_ as-40819 destroyed. 00765_ Assault Rifle destroyed. 00765_ System corrupted by crushing effect (+4). 00768_ Imp. Terrain Scanner destroyed. 00768_ System corrupted by crushing effect (+5). 00768_ Knocked back. 00773_ System corrupted: EM Pulse Gun failed to cycle. 00773_ Plasma Injector explodes. 00778_ K-01 Serf collects debris. 00778_ EM Pulse Gun destroyed. 00778_ System corrupted by crushing effect (+1). Map ----- +----------------------------------------------------+ | | | | | | | | | | | | | | | #?????????????????????#??????????????#???????????? | | ?????#???????????????????????????????????????????? | | ?????????????#???????????????????????????????????? | | ???????#???##?#??????????????????????????????????? | | ???????????????????#????####?????????????????????? | | ??????????????########### ####??#???????????????? | | ##???########## "" ##?????????????????? | | ##??# ##????????????????? | | #### % % " % #????????????????? | | ## ### % ### ## #????????????????? | | % ##?# %##?# #### ##????????????????? | | = ##??## ###??# %##??###??#??????????????? | | = ##??#?####????# ##?#???????????????????? | | ####???????????#?# ##????????????????????? | | ###?????#????#????## ##???????????????????? | | ##???????????#????## #??#????????????????? | | ##?????????????#??## #???????? ??????????? | | #????????????????## #???????????????????? | | #?????????????????# @ ;#???????????????????? | | #??????##??????#??#; a ;#???????????????????? | | ##?????????????????#; ;##???????????????????? | | ???????????????????# % ;#????????????????????? | | ??????????????????=*! ;#?????#??????????????? | | ???????????????? =%= ## ##?#??????????????????? | | ####?????????? !! #?# #?????????????????????? | | ##???????? k #??# #????????? ???????????? | | #????????## #???# #?#???????????????????? | | #?????????## #????# ?????????????????????? | | ##?????????# #?????? ?????????????????????? | | #?????????# ???????###?????????????????????? | | #?????????? ????????????????????????????????? | | ## ##?????????# ????????????????????????????????? | | #####????????????????????????????????????????????? | | #????????????????????????????????????????????????? | | #???????????????????#????????????????????????????? | | ?????????????????????????????????????????????????? | | ?????????????????????????????????????????????????? | | ?????????????????????????????????????????????????? | | ?????????????????????????????????????????????????? | | ?????????????????????????????????????????????????? | | ?????????????????????????????????????????????????? | | ?????????????????????????????????????????????????? | | ?????????????????????????????????????????????????? | +----------------------------------------------------+ Best States ------------- Heat Dissipation 25 Energy Generation 10 Energy Capacity 250 Matter Stores 300 Matter Capacity 300 Sight Range 16 Robot Scan Range 14 Terrain Scan Range 16 Terrain Scan Density 10 ECM Strength 1 Evasion (%) 50 Item Schematics ----------------- None Robot Schematics ------------------ None Fabricated ------------ Nothing Alien Tech Used ----------------- None Achievements -------------- None Challenges ------------ None Game ------ Seed AntigravBoreDerivative Manual? 0 Play Time 00:20:06 Cumulative 236.0 hours Start 2024.04.05 @ 15:57:00 End 2024.04.05 @ 16:17:22 Sessions 1 Manual Loads 0 Difficulty Rogue Special Mode None Game No. 106 Rogue 103 Adventurer 3 Explorer 0 Win Type - Total 0 Types 0/0/0/0/0/0/0/0/0 Lore% 29 Gallery% 52 Achievement% 36 Wizard Run 0 Options --------- Layout 0 ASCII 0 Keyboard 0 Movement Mouse Keybinds 0 Fullscreen 2 Font 18/SmallcapsGlow Map View 76x50 Zoom Use 0% Tactical HUD 1 Map Filters NONE Filters NONE Steam 1 RUN: 6c2e0220-d20d-451a-8b78-e9bb6b536e0b